bitfinex/quotes_ETHUSD_20251111
["timestamp","ask_amount","ask_price","bid_price","bid_amount"]
[1762903395671,0.27433239,3438.5,3438.4,20.1531424]
[1762903396579,0.002,3438.5,3438.4,20.5586464]
[1762903399259,0.002,3438.5,3438.4,17.65031695]
[1762903399449,0.002,3438.5,3438.4,18.29483345]
[1762903400253,0.002,3438.5,3438.4,15.673]
[1762903400454,0.002,3438.5,3438.4,18.58132945]
[1762903401118,0.002,3438.5,3438.4,19.03782945]
[1762903402108,0.002,3438.5,3438.1,0.1838]
[1762903402109,0.9529,3438.5,3438.1,0.1838]
[1762903402282,0.9529,3438.5,3438.1,3.78335861]
[1762903402483,0.9529,3438.5,3438.1,1.54410987]
[1762903402711,0.9529,3438.5,3438.1,4.45268999]
[1762903403219,0.9529,3438.5,3438.1,0.691]
[1762903403220,1.4109,3438.5,3438.1,0.691]
[1762903403433,0.5,3438.4,3438.1,3.59957747]
[1762903404221,0.5,3438.4,3438.1,3.59952138]
[1762903404417,0.5,3438.4,3438.1,2.90852138]
[1762903404840,0.5,3438.4,3438.0,14.501]
[1762903405129,0.5,3438.2,3438.0,14.501]
[1762903405329,0.4509,3438.1,3438.0,14.501]
[1762903405541,0.9509,3438.1,3438.0,14.501]
[1762903405840,1.2230194,3438.1,3438.0,14.501]
[1762903406532,0.9509,3438.1,3438.0,14.501]
[1762903408414,2.91026401,3438.5,3438.0,14.9559]
[1762903408415,0.002,3438.5,3438.0,14.9559]
[1762903408632,0.002,3438.5,3438.1,1.39668583]
[1762903408815,0.002,3438.5,3438.4,0.4549]
[1762903409638,0.002,3438.5,3438.4,3.36322945]
[1762903410542,0.002,3438.5,3438.4,3.84442945]
[1762903410845,0.002,3438.5,3438.1,0.1964]
[1762903411005,0.5,3438.1,3438.0,14.501]
[1762903411336,0.9754,3438.1,3438.0,14.501]
[1762903411703,1.4416,3438.1,3438.0,14.501]
[1762903411904,1.71371603,3438.1,3438.0,14.501]
[1762903412507,4.62229925,3438.1,3438.0,14.501]
[1762903412710,6.50912325,3438.1,3438.0,0.001]
[1762903418071,2.38125683,3438.1,3438.0,0.001]
[1762903418236,5.28984005,3438.1,3438.0,0.001]
[1762903418435,5.28949868,3438.1,3438.0,0.001]
[1762903418820,5.75569868,3438.1,3438.0,0.001]
[1762903424697,5.75563205,3438.1,3438.0,0.001]
[1762903424894,7.24660999,3438.1,3438.0,0.001]
[1762903428098,3.68029125,3438.1,3438.0,0.001]
[1762903428974,0.77170803,3438.1,3438.0,0.4559]
[1762903429312,0.77170803,3438.1,3438.0,0.9371]
[1762903429799,0.77170803,3438.1,3438.0,15.4371]
[1762903430838,0.77179218,3438.1,3438.0,15.4371]
[1762903432213,0.77179218,3438.1,3438.0,14.9559]
[1762903435648,0.77179218,3438.1,3438.0,15.4371]
[1762903435943,0.77179218,3438.1,3438.0,17.56257587]
[1762903436093,3.6803754,3438.1,3438.0,14.501]
[1762903436297,5.7527162,3438.1,3438.0,0.001]
[1762903438913,5.74689887,3438.1,3438.0,0.001]
[1762903446227,6.20319282,3438.1,3438.0,0.001]
[1762903446429,8.02977711,3438.1,3438.0,0.001]
[1762903447346,7.54417711,3438.1,3438.0,0.001]
[1762903447547,4.80829887,3438.1,3438.0,0.4687]
[1762903448037,0.76597485,3438.1,3438.0,0.4687]
[1762903448235,0.76597485,3438.1,3438.0,0.9215]
[1762903449340,0.76597485,3438.1,3438.0,0.001]
[1762903449341,3.6338754,3438.1,3438.0,0.001]
[1762903449559,5.87024972,3438.1,3438.0,0.001]
[1762903449781,5.72519887,3438.1,3438.0,0.001]
[1762903449938,2.90892166,3437.7,3437.6,0.001]
[1762903450139,11.55699882,3437.7,3437.6,0.001]
[1762903456386,4.80863731,3437.7,3437.6,0.001]
[1762903457050,6.32475079,3437.7,3437.6,0.001]
[1762903457263,6.78815079,3437.7,3437.6,0.001]
[1762903458161,7.24451199,3437.7,3437.6,0.001]
[1762903458593,6.78111199,3437.7,3437.6,0.001]
[1762903458780,7.24451199,3437.7,3437.6,0.001]
[1762903459180,6.32761199,3437.7,3437.6,0.001]
[1762903459495,6.32761199,3437.7,3437.6,0.4687]
[1762903459697,6.78111199,3437.7,3437.6,0.001]
[1762903460589,7.24451199,3437.7,3437.6,0.001]
[1762903464016,4.44858961,3437.2,3437.1,0.001]
[1762903464232,11.90952597,3437.2,3437.1,0.001]
[1762903464367,12.37292597,3437.2,3437.1,0.001]
[1762903466388,4.80906046,3437.2,3437.1,0.001]
[1762903467100,5.28376046,3437.2,3437.1,0.001]
[1762903467431,0.76597485,3437.2,3437.1,1.1618]
[1762903467724,0.76597485,3437.2,3437.1,15.6618]
[1762903468091,0.45631525,3437.8,3437.1,15.6618]
[1762903468290,0.5,3437.5,3437.3,2.90925245]
[1762903468625,0.45631525,3437.8,3437.7,0.4966]
[1762903468813,0.95631525,3437.8,3437.7,0.9761]
[1762903469638,0.5,3437.8,3437.7,0.9761]
[1762903470726,0.002,3438.0,3437.3,0.4795]
[1762903471066,0.5,3437.4,3437.3,1.99602]
[1762903471228,2.90917553,3437.4,3437.1,14.6857]
[1762903471431,0.5,3437.2,3437.1,15.1652]
[1762903471953,0.5,3437.2,3437.1,15.6618]
[1762903472650,3.40934481,3437.2,3437.1,14.501]
[1762903472853,3.40934481,3437.2,3437.1,0.001]
[1762903473559,5.01778561,3437.2,3437.1,0.001]
[1762903473851,6.27218284,3437.2,3437.1,0.001]
[1762903474056,5.81048284,3437.2,3437.1,0.001]
[1762903474417,1.6337408,3437.2,3437.1,0.5744]
[1762903475015,4.54308561,3437.2,3437.1,0.5744]
[1762903475218,1.6337408,3437.2,3437.1,0.5744]
[1762903475614,1.6337408,3437.2,3437.1,1.0539]
[1762903476031,0.5,3437.2,3437.1,1.0539]
[1762903476273,0.5,3437.2,3437.1,2.90025241]
[1762903477019,0.5,3437.2,3437.1,1.0539]
[1762903477224,0.5,3437.2,3437.1,15.5539]
[1762903477883,0.5,3437.2,3437.1,15.0744]
[1762903478016,0.5,3437.2,3436.7,0.001]
[1762903478017,2.90968342,3436.8,3436.7,0.001]
[1762903478220,4.99662422,3436.8,3436.7,0.001]
[1762903478420,5.45822422,3436.8,3436.7,0.001]
[1762903480174,6.18646116,3436.8,3436.7,0.001]
[1762903480873,5.72486116,3436.8,3436.7,0.001]
[1762903481059,5.27166116,3436.8,3436.7,0.001]
[1762903482138,6.61063869,3436.8,3436.7,0.001]
[1762903485581,7.05093869,3436.8,3436.7,0.001]
[1762903492986,7.05093869,3436.8,3436.6,0.001]
[1762903492987,4.54350889,3436.7,3436.6,0.001]
[1762903493183,5.30226597,3436.7,3436.6,0.001]
[1762903502490,4.04367823,3436.5,3436.4,0.001]
[1762903502687,11.58423272,3436.5,3436.4,0.001]
[1762903502887,4.54401698,3436.1,3435.9,0.001]
[1762903503105,5.23977406,3436.1,3435.9,0.001]
[1762903503327,5.71607406,3436.1,3435.9,0.001]
[1762903503623,5.71607406,3436.1,3435.3,0.001]
[1762903503624,4.95011398,3435.4,3435.3,0.001]
[1762903503935,12.03256847,3435.4,3435.3,0.001]
[1762903504108,12.03256847,3435.4,3434.6,0.001]
[1762903504109,3.41146242,3434.7,3434.6,0.001]
[1762903504294,11.62185771,3434.7,3434.6,0.001]
[1762903504630,13.54586044,3434.7,3434.6,0.001]
[1762903504921,14.2991488,3434.7,3434.6,0.001]
[1762903505523,4.54562711,3434.2,3434.1,0.001]
[1762903505724,11.1625816,3434.2,3434.1,0.001]
[1762903506068,11.6388816,3434.2,3434.1,0.001]
[1762903506193,13.09894876,3434.2,3434.1,0.001]
[1762903506595,13.50445276,3434.2,3434.1,0.001]
[1762903508417,13.96130745,3434.2,3434.1,0.001]
[1762903508821,13.50445276,3434.2,3434.1,0.001]
[1762903509425,12.62264876,3434.2,3434.1,0.001]
[1762903509606,13.50445276,3434.2,3434.1,0.001]
[1762903509835,5.61247032,3433.8,3433.7,1e-08]
[1762903510037,7.19137842,3433.8,3433.7,1e-08]
[1762903510260,7.64257842,3433.8,3433.7,1e-08]
[1762903512074,6.58176308,3433.8,3433.7,0.45260001]
[1762903512365,4.8177234,3433.8,3433.7,0.45260001]
[1762903512532,4.8177234,3433.8,3433.7,1e-08]
[1762903512533,5.2569234,3433.8,3433.7,1e-08]
[1762903512735,5.7329234,3433.8,3433.7,1e-08]
[1762903512930,6.60242854,3433.8,3433.7,1e-08]
[1762903513745,7.05930709,3433.8,3433.7,1e-08]
[1762903514072,7.46481109,3433.8,3433.7,1e-08]
[1762903514847,3.31789915,3433.6,3433.5,0.001]
[1762903515056,11.56889444,3433.6,3433.5,0.001]
[1762903515255,13.67857481,3433.6,3433.5,0.001]
[1762903515450,7.3878774,3433.6,3433.5,0.001]
[1762903515676,13.72857481,3433.6,3433.5,0.001]
[1762903515863,12.79197081,3433.6,3433.5,0.001]
[1762903516050,12.79197081,3433.6,3433.5,0.9324]
[1762903516051,1.90549788,3433.6,3433.5,0.9324]
[1762903516377,4.81789303,3433.6,3433.5,0.9324]
[1762903516884,12.02829444,3433.6,3433.5,0.001]
[1762903517189,12.70333774,3433.6,3433.5,0.001]
[1762903518394,12.70333774,3433.6,3433.5,0.4536]
[1762903519792,12.70333774,3433.6,3433.5,0.9324]
[1762903519976,12.70333774,3433.6,3433.5,0.4536]
[1762903520297,13.14253774,3433.6,3433.5,0.001]
[1762903521754,12.70333774,3433.6,3433.5,0.4536]
[1762903521959,12.70333774,3433.6,3433.5,0.9324]
[1762903523054,4.81789303,3433.6,3433.5,0.9324]
[1762903523613,1.90549788,3433.6,3433.5,0.9324]
[1762903523790,0.77021523,3433.6,3433.5,0.9324]
[1762903524158,1.90395603,3433.6,3433.5,0.9324]
[1762903524353,4.81635118,3433.6,3433.5,0.9324]
[1762903524568,5.63490301,3433.6,3433.5,0.4536]
[1762903524892,4.81635118,3433.6,3433.5,0.4536]
[1762903525289,11.59624859,3433.6,3433.5,0.001]
[1762903525491,11.15704859,3433.6,3433.5,0.001]
[1762903526389,4.54622077,3433.5,3433.2,0.001]
[1762903526581,4.816436,3433.5,3433.2,0.001]
[1762903526756,4.816436,3433.5,3433.4,0.4742]
[1762903526958,6.51461772,3433.5,3433.4,0.4742]
[1762903527359,6.51461772,3433.5,3433.4,0.001]
[1762903527862,6.51461772,3433.5,3433.4,0.4742]
[1762903528854,6.51461772,3433.5,3433.4,0.936]
[1762903529053,6.51461772,3433.5,3433.4,0.4742]
[1762903529054,4.816436,3433.5,3433.4,0.4742]
[1762903530355,4.816436,3433.5,3433.4,0.936]
[1762903532416,4.816436,3433.5,3433.4,0.4742]
[1762903532895,4.816436,3433.5,3433.4,0.936]
[1762903533191,4.816436,3433.5,3433.4,0.18965708]
[1762903533393,6.21601554,3433.5,3433.4,0.18965708]
[1762903534165,6.21601554,3433.5,3433.4,0.65145708]
[1762903534365,4.816436,3433.5,3433.4,0.65145708]
[1762903534575,0.77021523,3433.5,3433.4,0.65145708]
[1762903534777,1.90395603,3433.5,3433.4,0.65145708]
[1762903535176,4.816436,3433.5,3433.4,0.65145708]
[1762903535872,4.81906686,3433.5,3433.4,0.65145708]
[1762903537082,4.81906686,3433.5,3433.4,0.18965708]
[1762903538115,4.81906686,3433.5,3433.4,0.65145708]
[1762903538985,4.81902367,3433.5,3433.4,0.65145708]
[1762903539722,4.81902367,3433.5,3433.4,0.65245708]
[1762903539957,4.82102367,3433.5,3433.4,0.65245708]
[1762903540627,4.82102367,3433.5,3433.4,14.69065708]
[1762903540783,4.82102367,3433.5,3433.4,15.15245708]
[1762903541291,1.9085437,3433.5,3433.4,15.15245708]
[1762903541506,4.82102367,3433.5,3433.4,15.15245708]
[1762903542197,1.9085437,3433.5,3433.4,15.15245708]
[1762903543523,4.82102367,3433.5,3433.4,0.65245708]
[1762903544144,5.59435911,3433.5,3433.4,0.001]
[1762903544344,6.07915911,3433.5,3433.4,0.001]
[1762903545444,5.59435911,3433.5,3433.4,0.001]
[1762903545646,4.82102367,3433.5,3433.4,0.4742]
[1762903548150,4.82102367,3433.5,3433.4,0.936]
[1762903549955,4.82102367,3433.5,3433.4,0.4742]
[1762903551250,5.30582367,3433.5,3433.4,0.001]
[1762903551578,6.51232321,3433.5,3433.4,0.001]
[1762903551743,6.99712321,3433.5,3433.4,0.001]
[1762903553477,7.49592321,3433.5,3433.4,0.001]
[1762903553873,6.99712321,3433.5,3433.4,0.001]
[1762903554038,6.51232321,3433.5,3433.4,0.001]
[1762903555741,6.97382321,3433.5,3433.4,0.001]
[1762903555947,7.43322321,3433.5,3433.4,0.001]
[1762903556351,6.97382321,3433.5,3433.4,0.001]
[1762903556552,6.51232321,3433.5,3433.4,0.001]
[1762903556778,6.51232321,3433.5,3433.4,0.4941]
[1762903557076,1.9085437,3433.5,3433.4,0.4941]
[1762903557280,0.7748029,3433.5,3433.4,0.988]
[1762903559565,3.68728287,3433.5,3433.4,0.4941]
[1762903560352,0.7748029,3433.5,3433.4,0.4941]
[1762903560556,0.7748029,3433.5,3433.4,0.9773]
[1762903561153,3.68728287,3433.5,3433.4,0.9773]
[1762903562588,3.68728287,3433.5,3433.4,0.4941]
[1762903563697,0.7748029,3433.5,3433.4,0.9773]
[1762903564288,3.68728287,3433.5,3433.4,0.4941]
[1762903564594,0.7748029,3433.5,3433.4,0.4941]
[1762903564769,0.7748029,3433.5,3433.4,0.9773]
[1762903564977,3.68728287,3433.5,3433.4,0.4941]
[1762903565396,0.7748029,3433.5,3433.4,0.4941]
[1762903565762,3.68728287,3433.5,3433.4,0.4941]
[1762903566097,0.7748029,3433.5,3433.4,0.4941]
[1762903566272,3.68728287,3433.5,3433.4,0.4941]
[1762903566886,0.7748029,3433.5,3433.4,0.4941]
[1762903567487,3.68728287,3433.5,3433.4,0.4941]
[1762903568774,6.04695822,3433.5,3433.4,0.001]
[1762903568973,5.59435822,3433.5,3433.4,0.4764]
[1762903569179,4.82102367,3433.5,3433.4,0.4764]
[1762903569973,1.9085437,3433.5,3433.4,0.9596]
[1762903570398,4.82141338,3433.5,3433.4,0.9596]
[1762903570599,4.82141338,3433.5,3433.4,0.4764]
[1762903570767,5.27401338,3433.5,3433.4,0.001]
[1762903570973,6.04738748,3433.5,3433.4,0.001]
[1762903571171,2.68230751,3433.5,3433.4,0.4764]
[1762903571370,1.90893341,3433.5,3433.4,0.9596]
[1762903571609,1.90893341,3433.5,3433.4,0.4764]
[1762903571809,4.82141338,3433.5,3433.4,0.9596]
[1762903572110,0.77519261,3433.5,3433.4,0.9596]
[1762903572674,3.68767258,3433.5,3433.4,0.9596]
[1762903573128,3.68767258,3433.5,3433.4,0.001]
[1762903573335,6.50628745,3433.5,3433.4,0.001]
[1762903573767,12.77262506,3433.5,3433.4,0.001]
[1762903574204,2.91264963,3433.3,3433.2,0.001]
[1762903574419,3.97494224,3433.3,3433.2,0.001]
[1762903574593,5.99101971,3433.3,3433.2,0.001]
[1762903574790,7.12476051,3433.3,3433.2,0.001]
[1762903576707,7.53026451,3433.3,3433.2,0.001]
[1762903576908,16.71726443,3433.3,3433.2,0.001]
[1762903577277,11.71826047,3433.3,3433.2,0.001]
[1762903577611,10.97026047,3433.3,3433.2,0.001]
[1762903577815,10.97026047,3433.3,3433.2,0.4764]
[1762903577979,9.413083,3433.3,3433.2,0.4764]
[1762903579031,9.865683,3433.3,3433.2,0.001]
[1762903579496,10.324583,3433.3,3433.2,0.001]
[1762903580075,14.91808296,3433.3,3433.2,0.001]
[1762903580280,17.06992749,3433.3,3433.2,0.001]
[1762903581118,17.52688514,3433.3,3433.2,0.001]
[1762903582721,12.93338518,3433.3,3433.2,0.001]
[1762903583045,12.02188518,3433.3,3433.2,0.001]
[1762903583342,12.02188518,3433.3,3433.2,0.4764]
[1762903583646,9.87004065,3433.3,3433.2,0.4764]
[1762903583833,8.2793422,3433.3,3433.2,0.4764]
[1762903584037,8.2793422,3433.3,3433.2,0.9596]
[1762903584558,9.413083,3433.3,3433.2,0.9596]
[1762903585840,9.413083,3433.3,3433.2,0.4764]
[1762903586026,9.413083,3433.3,3433.2,0.001]
[1762903586027,9.879983,3433.3,3433.2,0.001]
[1762903586232,11.86334739,3433.3,3433.2,0.001]
[1762903586638,16.91834735,3433.3,3433.2,0.001]
[1762903586830,7.73134743,3433.3,3433.2,0.001]
[1762903587031,12.01782281,3433.3,3433.2,0.001]
[1762903588361,12.01782281,3433.3,3433.2,0.6126]
[1762903588362,1.40693341,3433.3,3433.2,0.6126]
[1762903588651,1.90617291,3433.3,3433.2,0.6126]
[1762903588884,1.90617291,3433.3,3433.2,0.4512]
[1762903589258,4.81882254,3433.3,3433.2,0.4512]
[1762903589584,1.90617291,3433.3,3433.2,0.4512]
[1762903589750,1.40617291,3433.3,3433.2,0.4512]
[1762903589951,1.90617291,3433.3,3433.2,0.4512]
[1762903590698,1.90617291,3433.3,3433.2,0.9115]
[1762903590877,4.81882254,3433.3,3433.2,0.9115]
[1762903591084,1.90617291,3433.3,3433.2,0.9115]
[1762903593904,4.81882254,3433.3,3433.2,0.001]
[1762903594103,6.05925761,3433.3,3433.2,0.001]
[1762903595298,5.28572254,3433.3,3433.2,0.001]
[1762903595502,5.74722254,3433.3,3433.2,0.001]
[1762903597486,5.28572254,3433.3,3433.2,0.001]
[1762903600468,5.74722254,3433.3,3433.2,0.001]
[1762903600661,4.04647527,3433.2,3433.1,0.001]
[1762903600862,6.31232997,3433.2,3433.1,0.001]
[1762903603016,3.68516658,3433.2,3433.1,0.4512]
[1762903604424,1.90617291,3433.2,3433.1,0.4512]
[1762903604726,4.81890738,3433.2,3433.1,0.4512]
[1762903605096,4.81890738,3433.2,3433.1,0.001]
[1762903605436,6.52086482,3433.2,3433.1,0.001]
[1762903605924,6.05936482,3433.2,3433.1,0.001]
[1762903606998,10.79494717,3433.2,3433.1,0.001]
[1762903607190,10.32804717,3433.2,3433.1,0.001]
[1762903607591,10.32804717,3433.2,3433.1,0.4512]
[1762903607793,11.25644717,3433.2,3433.1,0.001]
[1762903608802,3.38005418,3432.8,3432.4,0.001]
[1762903609117,9.58976675,3432.6,3432.4,0.001]
[1762903609312,9.86219886,3432.6,3432.4,0.001]
[1762903609512,10.32369886,3432.6,3432.4,0.001]
[1762903609894,0.405504,3432.4,3430.6,0.3974]
[1762903610227,4.73558235,3431.2,3430.6,0.659]
[1762903610427,0.5,3430.8,3430.6,0.659]
[1762903610614,0.5,3430.8,3430.7,0.4603]
[1762903610802,0.77249064,3430.8,3430.7,0.9105]
[1762903611193,0.77249064,3430.8,3430.7,1.31292221]
[1762903611390,0.5,3430.8,3430.7,0.4502]
[1762903611596,0.5,3430.8,3430.7,0.9105]
[1762903612046,0.5,3430.8,3429.9,0.6217]
[1762903612355,3.41511194,3430.4,3430.3,0.1968]
[1762903612698,0.5,3430.4,3430.3,0.647]
[1762903613152,0.5,3430.4,3430.3,1.1073]
[1762903614015,3.41511194,3430.4,3430.3,1.1073]
[1762903614214,0.5,3430.4,3430.3,1.1073]
[1762903616312,0.5,3430.4,3430.3,15.5992]
[1762903616519,1.1337408,3431.3,3430.3,17.45356709]
[1762903616715,0.5,3430.6,3430.4,3.36729705]
[1762903616955,0.5,3430.6,3430.4,0.4522]
[1762903617121,0.5,3430.6,3430.5,0.9149]
[1762903617312,0.5,3430.6,3430.5,3.82992696]
[1762903617640,0.5,3430.6,3430.5,0.9149]
[1762903618046,0.5,3430.8,3430.5,2.95302997]
[1762903618255,0.5,3430.8,3430.6,0.4606]
[1762903618434,0.5,3430.8,3430.7,0.4801]
[1762903619426,3.41477206,3430.8,3430.7,0.4801]
[1762903620366,3.41477206,3430.8,3430.7,14.9801]
[1762903620542,0.5,3430.8,3430.7,14.9801]
[1762903621791,0.05,3432.3,3430.8,2.91477206]
[1762903622074,0.002,3433.4,3432.9,2.91297226]
[1762903622229,0.002,3433.4,3433.0,0.02912904]
[1762903622430,0.002,3433.4,3433.1,14.5]
[1762903622675,0.002,3433.4,3433.3,2.91264963]
[1762903622858,0.002,3433.4,3433.3,3.31815363]
[1762903623030,0.002,3433.5,3433.4,3.3180688]
[1762903623233,0.002,3433.8,3433.7,2.91231033]
[1762903623536,0.002,3433.8,3433.7,14.5]
[1762903623742,0.002,3433.8,3433.7,16.24124512]
[1762903623941,0.002,3433.8,3433.7,19.15355545]
[1762903624450,0.002,3433.8,3433.7,19.55905945]
[1762903624972,0.002,3434.2,3433.8,2.91222552]
[1762903625265,0.002,3434.2,3434.0,2.91205591]
[1762903625470,0.002,3434.2,3434.1,3.31747511]
[1762903625626,0.002,3434.2,3434.1,4.00347511]
[1762903625831,0.002,3434.2,3434.1,19.63721591]
[1762903626464,0.002,3434.6,3434.5,3.31713596]
[1762903626662,0.002,3435.0,3434.9,3.3167969]
[1762903627089,0.458,3436.6,3435.0,1.5392448]
[1762903627296,2.90970054,3436.8,3435.2,18.95028345]
[1762903627495,2.90961582,3436.9,3435.2,19.63628345]
[1762903627693,0.65,3437.0,3435.3,1.5392448]
[1762903627894,0.65,3437.0,3436.1,2.9102554]
[1762903627895,3.55952995,3437.0,3436.1,2.9102554]
[1762903628055,2.90966331,3436.9,3436.1,2.91027018]
[1762903628251,0.65,3437.0,3435.8,0.686]
[1762903628252,0.65,3437.0,3436.2,2.91018179]
[1762903628456,0.65,3437.0,3436.3,17.41009671]
[1762903628655,3.55952542,3437.0,3436.3,17.41009671]
[1762903628896,0.65,3437.0,3436.3,17.41008054]
[1762903629110,0.002,3437.2,3436.4,2.91001346]
[1762903629260,0.002,3437.2,3436.4,0.405504]
[1762903629763,0.002,3437.2,3436.8,2.90962507]
[1762903630182,0.002,3437.2,3436.6,3.31533603]
[1762903630365,0.002,3437.2,3436.6,0.405504]
[1762903630579,0.6718,3436.7,3436.3,14.5]
[1762903630778,3.38982211,3436.4,3436.3,14.5]
[1762903631200,3.84782211,3436.4,3436.3,14.5]
[1762903631699,2.91030278,3436.1,3435.3,0.685]
[1762903631860,2.91030278,3436.1,3435.4,0.405504]
[1762903632058,0.458,3436.0,3435.1,0.8747516]
[1762903632393,0.458,3436.0,3435.5,14.5]
[1762903632576,0.98745582,3435.9,3435.5,14.5]
[1762903633192,2.91069973,3435.6,3435.5,14.5]
[1762903633391,2.91069239,3435.7,3435.5,14.5]
[1762903633566,3.39049973,3435.6,3435.5,14.5]
[1762903633767,3.84849973,3435.6,3435.5,14.5]
[1762903633989,2.91082961,3435.5,3434.8,0.405504]
[1762903634195,1.71245089,3435.6,3434.8,0.405504]
[1762903634412,1.23265089,3435.6,3434.9,2.91125517]
[1762903634619,4.14336273,3435.6,3435.0,14.5]
[1762903635210,2.91084463,3435.5,3435.0,14.5]
[1762903635813,4.14337595,3435.6,3435.0,14.5]
[1762903636111,2.91080109,3435.5,3435.0,14.5]
[1762903636691,1.23265089,3435.6,3435.0,14.5]
[1762903636880,4.14335838,3435.6,3435.0,14.5]
[1762903637210,2.9105855,3435.8,3435.1,2.91109546]
[1762903637386,3.89794641,3435.9,3435.0,14.5]
[1762903637586,2.91054678,3435.8,3435.1,2.91105492]
[1762903637786,2.91064821,3435.7,3435.1,2.91105492]
[1762903638018,2.91091533,3435.4,3435.0,14.5]
[1762903638194,2.91074433,3435.6,3435.0,14.5]
[1762903638515,2.91062939,3435.7,3435.1,2.91111716]
[1762903638713,0.84001111,3435.8,3435.1,2.91111716]
[1762903638900,0.98745582,3435.9,3435.0,14.5]
[1762903639281,2.91053029,3435.8,3435.1,2.91106996]
[1762903639507,3.89791245,3435.9,3435.0,17.4111747]
[1762903639707,2.91070835,3435.6,3435.0,17.4111747]
[1762903639911,2.91054511,3435.8,3435.1,2.91111215]
[1762903640080,0.84000959,3435.8,3435.1,2.91106661]
[1762903640287,2.91062785,3435.7,3435.1,2.91106661]
[1762903640881,2.91062785,3435.7,3435.0,17.41117415]
[1762903641116,0.84000959,3435.8,3435.1,2.91109293]
[1762903641319,2.91067615,3435.7,3435.0,17.41118386]
[1762903641521,1.5917408,3436.1,3435.1,2.9111234]
[1762903641728,1.1337408,3436.2,3435.0,14.5]
[1762903641904,2.91032904,3436.1,3435.4,2.91080807]
[1762903642094,3.65154856,3436.1,3435.4,2.9107979]
[1762903642295,3.65154856,3436.1,3435.5,2.91077218]
[1762903642691,0.002,3435.8,3435.7,2.91061501]
[1762903643329,0.002,3435.8,3435.3,2.91095391]
[1762903643528,0.002,3435.8,3435.3,0.405504]
[1762903644151,0.002,3435.8,3435.3,3.31644409]
[1762903645001,0.002,3435.8,3435.3,0.405504]
[1762903645404,0.002,3435.8,3435.2,0.685]
[1762903645405,0.4798,3435.4,3435.0,14.5]
[1762903645618,0.4798,3435.3,3435.0,14.5]
[1762903646229,0.4798,3435.3,3435.0,17.41120127]
[1762903646429,0.458,3435.4,3435.0,17.41120127]
[1762903646632,0.458,3435.4,3435.0,14.5]
[1762903646948,2.91078956,3435.5,3435.0,14.5]
[1762903647500,2.91073816,3435.6,3435.0,17.41119972]
[1762903647699,0.4559,3435.7,3435.1,2.91104911]
[1762903647895,2.91255086,3435.8,3435.7,1.5441]
[1762903648097,3.38955086,3435.8,3435.7,1.5441]
[1762903649926,3.84545086,3435.8,3435.7,1.5441]
[1762903650698,2.91154719,3434.6,3434.5,0.001]
[1762903650940,3.38854719,3434.6,3434.5,0.001]
[1762903651100,3.84444719,3434.6,3434.5,0.001]
[1762903651847,4.34444719,3434.6,3434.5,0.001]
[1762903652009,5.08937747,3434.6,3434.5,0.001]
[1762903652719,5.36116998,3434.6,3434.5,0.001]
[1762903655040,2.44962279,3434.6,3434.5,0.001]
[1762903655248,2.44962279,3434.6,3434.5,3.82483196]
[1762903655249,0.77179251,3434.6,3434.5,3.82483196]
[1762903655408,0.192,3435.9,3434.5,1.318704]
[1762903655608,0.27173046,3435.7,3434.7,2.91138524]
[1762903655836,0.5,3435.1,3435.0,2.91120815]
[1762903656036,0.77173046,3435.1,3435.0,2.91120815]
[1762903656231,0.002,3435.8,3435.4,2.91082859]
[1762903656432,0.5,3435.5,3435.1,0.6081]
[1762903656659,0.27168589,3435.4,3435.1,0.6081]
[1762903656861,0.27168589,3435.3,3435.2,2.91096873]
[1762903657068,0.27168589,3435.3,3435.2,17.41096873]
[1762903657268,0.002,3435.8,3435.2,17.45463076]
[1762903657269,0.27168589,3435.7,3435.2,17.45463076]
[1762903657457,0.27168589,3435.6,3435.5,2.91078445]
[1762903657654,0.27168589,3435.6,3435.3,0.4561]
[1762903657841,0.27168589,3435.6,3435.5,0.4561]
[1762903658048,0.77168589,3435.6,3435.5,0.4561]
[1762903658252,0.77168589,3435.6,3435.5,17.86688445]
[1762903658846,0.5,3435.7,3435.6,2.91069973]
[1762903659173,0.002,3435.8,3435.7,2.91061501]
[1762903659373,0.002,3435.8,3435.7,3.85192116]
[1762903659533,0.002,3435.8,3435.7,5.39116596]
[1762903659900,0.002,3435.8,3435.7,5.36205981]
[1762903660363,0.002,3435.8,3435.7,19.86205981]
[1762903660669,0.002,3435.8,3435.7,22.42017261]
[1762903661569,0.002,3435.8,3435.7,23.10517261]
[1762903665579,0.002,3435.8,3435.7,22.64907261]
[1762903665981,1.4349,3435.8,3435.7,14.5]
[1762903666513,1.70644289,3435.8,3435.7,14.5]
[1762903668244,1.25054289,3435.8,3435.7,14.5]
[1762903668396,0.77354289,3435.8,3435.7,17.41061501]
[1762903668598,0.502,3435.8,3435.7,17.41061501]
[1762903668800,0.502,3435.8,3435.7,17.86671501]
[1762903669097,0.002,3435.8,3435.7,20.87456122]
[1762903671107,0.002,3435.8,3435.7,14.905504]
[1762903671301,0.002,3435.8,3435.7,17.81611901]
[1762903672931,0.002,3435.8,3435.7,18.27221901]
[1762903673350,0.002,3435.8,3435.7,18.72831901]
[1762903674364,0.002,3435.8,3435.7,3.77221901]
[1762903674712,0.002,3435.8,3435.7,18.27221901]
[1762903680349,0.9842,3435.8,3435.7,14.5]
[1762903680652,1.4453,3435.8,3435.7,14.5]
[1762903681019,0.502,3435.8,3435.7,17.41061501]
[1762903681219,0.002,3435.8,3435.7,17.41061501]
[1762903682559,0.002,3435.8,3435.7,17.86671501]
[1762903682769,0.002,3435.8,3435.7,20.41846849]
[1762903682966,0.002,3435.8,3435.7,20.87456849]